bitfinex/quotes_SOLUSD_20220211
["timestamp","ask_amount","ask_price","bid_price","bid_amount"]
[1644543620581,11.13,105.8,105.7,4.726]
[1644543620781,14.194,105.78,105.7,4.726]
[1644543620979,4.728,105.77,105.7,4.726]
[1644543621181,46.20555262,105.76,105.7,4.726]
[1644543621381,50.93355262,105.76,105.7,4.726]
[1644543621583,50.93355262,105.76,105.65,1.76701349]
[1644543621780,62.06355262,105.76,105.63,60.445]
[1644543622080,71.53215262,105.76,105.64,1.76701349]
[1644543622283,60.40215262,105.76,105.65,35.63106468]
[1644543622483,65.13215262,105.76,105.67,38.89017157]
[1644543622882,65.13215262,105.76,105.67,40.65718506]
[1644543623081,65.13215262,105.76,105.67,1.76701349]
[1644543623283,65.13215262,105.76,105.65,1.76701349]
[1644543623797,65.13215262,105.76,105.63,52.46611349]
[1644543623992,65.13215262,105.76,105.63,58.46611349]
[1644543624191,65.13215262,105.76,105.64,36.79063724]
[1644543624391,11.13,105.75,105.64,36.79063724]
[1644543624593,50.44369903,105.73,105.64,36.79063724]
[1644543624796,48.28357415,105.71,105.63,1.76701349]
[1644543625394,48.28357415,105.71,105.61,4.754]
[1644543625696,4.732,105.7,105.61,6.52101349]
[1644543625894,38.66891226,105.69,105.62,44.2378421]
[1644543626295,38.66891226,105.69,105.62,46.00485559]
[1644543626896,38.66891226,105.69,105.62,52.25485559]
[1644543627895,38.66891226,105.69,105.62,66.20695559]
[1644543628096,38.66891226,105.69,105.62,66.45695559]
[1644543629897,38.66891226,105.69,105.62,66.20695559]
[1644543630097,38.66891226,105.69,105.62,60.45695559]
[1644543630296,38.66891226,105.69,105.62,66.45695559]
[1644543630595,38.66891226,105.69,105.62,60.45695559]
[1644543631595,38.66891226,105.69,105.62,66.45695559]
[1644543631796,38.66891226,105.69,105.62,60.45695559]
[1644543632097,38.66891226,105.69,105.64,45.41251773]
[1644543632296,38.66891226,105.69,105.63,4.732]
[1644543632497,38.66891226,105.69,105.62,1.76701349]
[1644543632697,38.66891226,105.69,105.63,1.76701349]
[1644543633097,38.66891226,105.69,105.61,1.79101349]
[1644543633297,38.66891226,105.69,105.62,43.11338932]
[1644543633798,38.66891226,105.69,105.62,44.88040281]
[1644543638505,4.732,105.7,105.62,44.88040281]
[1644543638706,4.732,105.73,105.62,45.13040281]
[1644543638908,46.7853,105.74,105.63,15.861]
[1644543639107,46.7853,105.74,105.63,158.955]
[1644543639308,46.7853,105.74,105.64,1.76701349]
[1644543639513,91.89906541,105.74,105.65,45.05843478]
[1644543639809,45.11376541,105.74,105.66,1.76701349]
[1644543640007,45.11376541,105.74,105.67,44.00195101]
[1644543640408,45.11376541,105.74,105.68,1.76701349]
[1644543640609,45.11376541,105.74,105.69,43.74185231]
[1644543641012,4.73,105.76,105.69,43.74185231]
[1644543641321,4.729,105.77,105.69,51.75802172]
[1644543641511,4.729,105.8,105.7,11.13]
[1644543641713,0.04941615,105.83,105.7,11.13]
[1644543641913,0.04941615,105.8,105.71,1.76616941]
[1644543642115,0.04941615,105.82,105.72,60.21724027]
[1644543642412,0.04941615,105.81,105.74,43.49017295]
[1644543642632,0.04941615,105.84,105.75,11.13]
[1644543642832,0.04941615,105.84,105.76,43.37784459]
[1644543643032,42.13487194,105.83,105.76,43.37784459]
[1644543643232,42.13487194,105.83,105.76,49.37784459]
[1644543643634,46.86087194,105.83,105.73,11.13]
[1644543643834,0.04941615,105.82,105.73,17.13]
[1644543644034,4.727,105.81,105.73,6.0]
[1644543644236,0.04941615,105.82,105.73,0.25]
[1644543644437,0.04941615,105.82,105.74,1.76616941]
[1644543644636,37.48846708,105.81,105.75,35.66568763]
[1644543644837,37.48846708,105.81,105.72,18.89616941]
[1644543645037,37.48846708,105.81,105.72,19.14616941]
[1644543645837,37.48846708,105.81,105.73,45.94866362]
[1644543646238,37.48846708,105.81,105.74,1.76616941]
[1644543646439,44.44668862,105.81,105.73,45.94866362]
[1644543646639,44.49610477,105.81,105.73,45.94866362]
[1644543646840,39.71968862,105.81,105.73,45.94866362]
[1644543647139,39.71968862,105.81,105.69,65.1539]
[1644543647340,14.194,105.79,105.69,65.1539]
[1644543647739,16.42522154,105.79,105.69,71.1539]
[1644543647940,36.53251099,105.78,105.7,43.50038224]
[1644543648141,41.26051099,105.78,105.7,43.50038224]
[1644543648542,41.26051099,105.78,105.66,72.3419]
[1644543648741,52.95913253,105.78,105.67,4.729]
[1644543648939,52.95913253,105.78,105.65,1.76616941]
[1644543648940,4.729,105.77,105.65,1.76616941]
[1644543649142,15.859,105.77,105.63,14.5253]
[1644543649341,2.23122154,105.76,105.63,14.5253]
[1644543649541,39.4734115,105.75,105.64,45.35898195]
[1644543649743,14.2007,105.74,105.64,45.35898195]
[1644543649943,39.15542917,105.73,105.64,45.35898195]
[1644543650343,39.15542917,105.73,105.64,45.60898195]
[1644543650543,39.15542917,105.73,105.64,45.35898195]
[1644543650742,14.203,105.72,105.64,45.35898195]
[1644543650942,45.38733432,105.71,105.64,45.35898195]
[1644543651342,40.65633432,105.71,105.64,45.35898195]
[1644543651746,54.86073432,105.71,105.61,18.8013]
[1644543651947,54.86073432,105.71,105.55,79.3629]
[1644543651948,54.731,105.7,105.55,79.3629]
[1644543652246,94.53050762,105.7,105.6,0.004]
[1644543652445,45.131144,105.69,105.53,3.0]
[1644543652646,15.864,105.68,105.53,3.0]
[1644543652844,0.31302691,105.67,105.53,3.0]
[1644543653044,47.4017,105.64,105.53,3.0]
[1644543653243,15.865,105.63,105.53,3.0]
[1644543653445,18.09622154,105.63,105.53,3.0]
[1644543653649,7.67319401,105.62,105.53,3.0]
[1644543653844,14.2247,105.6,105.53,3.0]
[1644543654048,14.2247,105.6,105.44,4.735]
[1644543654049,15.866,105.59,105.44,4.735]
[1644543654249,63.2893,105.59,105.44,4.735]
[1644543654448,2.23122154,105.58,105.44,4.735]
[1644543654647,2.23122154,105.58,105.4,11.13]
[1644543654648,0.45,105.54,105.4,4.738]
[1644543654848,25.3626,105.53,105.4,4.738]
[1644543655048,32.78382154,105.53,105.35,4.74]
[1644543655247,32.33382154,105.53,105.35,4.74]
[1644543655448,30.1026,105.53,105.37,1.74699262]
[1644543655848,11.13,105.53,105.38,36.72466851]
[1644543656047,4.741,105.59,105.38,60.75599654]
[1644543656349,11.13,105.55,105.39,1.74699262]
[1644543656548,11.13,105.55,105.4,56.75566053]
[1644543656749,4.74,105.54,105.4,63.00566053]
[1644543656947,4.74,105.54,105.41,1.74699262]
[1644543657148,4.74,105.54,105.42,42.48667436]
[1644543657349,15.87,105.54,105.42,48.73667436]
[1644543657547,11.13,105.54,105.42,50.48366698]
[1644543657748,15.87,105.54,105.42,44.23366698]
[1644543657948,15.87,105.54,105.42,42.48667436]
[1644543658149,18.10122154,105.54,105.42,42.48667436]
[1644543658750,30.1013,105.54,105.42,42.48667436]
[1644543659150,32.33252154,105.54,105.42,42.48667436]
[1644543659557,32.33252154,105.54,105.38,4.74]
[1644543659951,32.33252154,105.54,105.38,6.48714802]
[1644543660451,0.45,105.53,105.38,4.74]
[1644543660651,14.239,105.49,105.38,4.74]
[1644543660851,15.872,105.48,105.39,35.11438345]
[1644543662051,15.872,105.48,105.38,4.74]
[1644543662252,32.34302154,105.48,105.37,4.3841287]
[1644543663153,32.34302154,105.48,105.37,52.94973239]
[1644543664158,0.45,105.47,105.37,4.3841287]
[1644543664357,14.245,105.44,105.37,4.3841287]
[1644543664557,15.873,105.43,105.37,4.3841287]
[1644543664956,18.10422154,105.43,105.37,2.87e-05]
[1644543665162,2.23122154,105.42,105.37,2.87e-05]
[1644543665460,11.13,105.41,105.37,2.87e-05]
[1644543665861,4.744,105.43,105.37,2.87e-05]
[1644543666060,11.13,105.43,105.37,2.87e-05]
[1644543666460,15.874,105.46,105.37,1.75234217]
[1644543666663,11.13,105.46,105.37,1.75234217]
[1644543666861,11.13,105.46,105.37,2.87e-05]
[1644543667261,13.36122154,105.46,105.37,2.87e-05]
[1644543667461,13.81122154,105.46,105.37,2.87e-05]
[1644543667663,4.743,105.45,105.37,2.87e-05]
[1644543667962,11.13,105.44,105.37,2.87e-05]
[1644543668669,11.13,105.44,105.37,6.49534217]
[1644543668962,11.13,105.44,105.37,40.05541511]
[1644543670364,18.9829,105.48,105.37,40.30541511]
[1644543670564,11.13,105.47,105.38,0.024]
[1644543670966,11.13,105.47,105.38,1.77631347]
[1644543671165,4.743,105.48,105.39,36.174354]
[1644543671369,38.6559,105.51,105.4,0.024]
[1644543671567,33.9139,105.51,105.41,4.741]
[1644543671769,38.6549,105.51,105.42,0.024]
[1644543672066,2.23122154,105.5,105.41,0.024]
[1644543672267,14.2401,105.48,105.39,0.024]
[1644543672467,4.742,105.47,105.37,2.87e-05]
[1644543672669,15.872,105.47,105.37,0.0240287]
[1644543672870,15.872,105.47,105.37,2.87e-05]
[1644543673072,18.10322154,105.47,105.38,0.024]
[1644543673271,18.10322154,105.47,105.37,2.87e-05]
[1644543673472,18.55322154,105.47,105.39,0.024]
[1644543673670,18.55322154,105.47,105.37,2.87e-05]
[1644543674071,14.2419,105.46,105.37,2.87e-05]
[1644543674272,15.873,105.45,105.37,2.87e-05]
[1644543674470,18.10422154,105.45,105.37,2.87e-05]
[1644543674872,112.78422154,105.45,105.37,2.87e-05]
[1644543675072,0.45,105.42,105.37,2.87e-05]
[1644543675272,11.13,105.41,105.37,2.87e-05]
[1644543675472,11.13,105.42,105.37,2.87e-05]
[1644543675672,13.36122154,105.42,105.37,2.87e-05]
[1644543676795,14.2507,105.41,105.37,2.87e-05]
[1644543676993,25.3807,105.41,105.37,2.87e-05]
[1644543678597,4.744,105.4,105.37,2.87e-05]
[1644543678798,5.18632779,105.39,105.37,2.87e-05]
[1644543680797,5.18632779,105.39,105.33,45.23575006]
[1644543680997,230.1512,105.46,105.33,45.23575006]
[1644543680998,15.875,105.45,105.33,45.23575006]
[1644543681202,15.875,105.45,105.34,1.77512093]
[1644543681400,15.875,105.45,105.35,48.85127716]
[1644543681598,30.1172,105.45,105.36,0.024]
[1644543681799,32.34842154,105.45,105.36,0.024]
[1644543683098,30.1172,105.45,105.36,0.024]
[1644543683803,11.13,105.45,105.37,45.63721266]
[1644543684004,11.13,105.48,105.37,45.66121266]
[1644543684206,49.30312154,105.49,105.39,36.0246442]
[1644543684405,2.23122154,105.49,105.4,0.024]
[1644543685707,16.46762154,105.49,105.4,0.024]
[1644543686308,27.59762154,105.49,105.4,0.024]
[1644543687008,14.24,105.46,105.4,0.024]
[1644543687210,14.24,105.46,105.39,36.0246442]
[1644543687408,14.24,105.46,105.37,0.024]
[1644543687609,16.47122154,105.46,105.37,0.024]
[1644543687809,16.47122154,105.46,105.36,0.024]
[1644543688009,27.60122154,105.46,105.36,0.024]
[1644543688211,14.2456,105.43,105.36,0.024]
[1644543688411,25.3756,105.43,105.33,41.45017009]
[1644543688711,2.23122154,105.42,105.34,0.024]
[1644543688910,6.97522154,105.42,105.34,0.024]
[1644543689715,21.22142154,105.42,105.34,0.024]
[1644543690119,16.47742154,105.42,105.34,0.024]
[1644543692718,30.1164,105.44,105.34,0.024]
[1644543692919,25.3724,105.44,105.35,43.16963623]
[1644543693120,25.3724,105.44,105.36,0.024]
[1644543694521,32.34662154,105.44,105.36,0.024]
[1644543695224,30.1154,105.44,105.36,0.024]
[1644543696027,32.34662154,105.44,105.36,0.024]
[1644543696223,32.34662154,105.44,105.33,0.024]
[1644543696625,27.60362154,105.44,105.33,0.024]
[1644543697123,4.744,105.43,105.33,0.024]
[1644543697324,14.2493,105.4,105.34,0.024]
[1644543697527,4.745,105.39,105.34,0.024]
[1644543697724,11.13,105.38,105.3,0.024]
[1644543698836,4.746,105.37,105.3,0.024]
[1644543699027,11.13,105.36,105.26,0.024]
[1644543699226,4.747,105.35,105.26,0.024]
[1644543699427,15.877,105.35,105.26,0.024]
[1644543699628,15.877,105.35,105.26,41.30608663]
[1644543699829,30.1331,105.35,105.26,41.30608663]
[1644543700034,30.1331,105.35,105.26,0.024]
[1644543700230,51.0,105.33,105.23,6.99455675]
[1644543700430,4.749,105.32,105.18,2.61202196]
[1644543700628,53.58099176,105.32,105.17,21.89362196]
[1644543700830,14.2648,105.28,105.17,4.749]
[1644543701028,15.881,105.27,105.12,104.12612196]
[1644543701330,18.56222154,105.27,105.13,14.2923]
[1644543701530,18.56222154,105.27,105.14,0.024]
[1644543701728,2.68122154,105.26,105.13,0.024]
[1644543701928,30.151,105.25,105.13,0.024]
[1644543702130,32.38222154,105.25,105.13,0.024]
[1644543702331,32.38222154,105.25,105.13,46.81022166]
[1644543702528,30.151,105.25,105.14,0.024]
[1644543702928,30.151,105.25,105.14,1.77534275]
[1644543702929,25.398,105.25,105.14,1.77534275]
[1644543703130,25.398,105.25,105.15,43.8911591]
[1644543703331,4.753,105.24,105.16,0.024]
[1644543703530,25.398,105.25,105.16,1.77534275]
[1644543703730,14.2657,105.27,105.18,39.66248009]
[1644543703932,11.544,105.28,105.18,39.66248009]
[1644543704129,11.544,105.28,105.2,43.94803933]
[1644543704330,11.544,105.28,105.2,50.19803933]
[1644543704631,11.544,105.28,105.2,59.95894377]
[1644543704830,11.544,105.28,105.2,43.94803933]
[1644543705233,6.98222154,105.27,105.13,4.751]
[1644543705430,13.36122154,105.27,105.16,10.751]
[1644543705630,18.11422154,105.27,105.13,4.753]
[1644543705829,13.36122154,105.27,105.15,0.024]
[1644543706032,11.13,105.27,105.16,4.752]
[1644543706231,14.2657,105.27,105.17,55.08075044]
[1644543706432,11.544,105.28,105.17,55.08075044]
[1644543706632,11.544,105.28,105.17,55.33075044]
[1644543707033,11.544,105.28,105.17,55.08075044]
[1644543707333,11.544,105.28,105.17,14.2639]
[1644543707536,15.881,105.27,105.13,4.751]
[1644543707735,16.331,105.27,105.13,4.775]
[1644543707934,2.23122154,105.26,105.14,0.024]
[1644543708135,15.882,105.25,105.14,0.024]
[1644543708333,15.882,105.25,105.15,0.024]
[1644543708532,14.27,105.24,105.15,0.024]
[1644543708733,11.13,105.25,105.14,0.274]
[1644543708933,15.883,105.26,105.15,0.024]
[1644543709134,4.753,105.24,105.13,45.23063502]
[1644543709435,13.36122154,105.25,105.14,0.024]
[1644543709633,14.2709,105.23,105.14,0.024]
[1644543710438,11.13,105.24,105.14,0.024]
[1644543710733,11.13,105.24,105.15,47.85300332]
[1644543710933,11.13,105.24,105.16,0.024]
[1644543712938,4.752,105.23,105.16,0.024]
[1644543713337,11.13,105.22,105.16,0.024]
[1644543713537,4.753,105.21,105.16,0.024]
[1644543713735,15.882,105.23,105.15,47.85300332]
[1644543713936,15.882,105.23,105.16,0.024]
[1644543714137,11.13,105.23,105.15,47.85300332]
[1644543714737,14.2727,105.22,105.15,47.85300332]
[1644543714937,11.13,105.23,105.15,47.85300332]
[1644543715139,6.98422154,105.22,105.15,47.85300332]
[1644543715341,6.98422154,105.22,105.14,0.024]
[1644543715740,11.13,105.21,105.13,0.024]
[1644543715939,19.0278,105.2,105.11,0.024]
[1644543716139,60.44342154,105.24,105.11,0.024]
[1644543716340,60.44342154,105.24,105.11,41.53331653]
[1644543716540,58.2122,105.24,105.12,0.024]
[1644543716742,4.753,105.23,105.12,0.024]
[1644543717341,14.2719,105.22,105.12,0.024]
[1644543717565,4.753,105.21,105.12,0.024]
[1644543717742,15.883,105.21,105.12,0.024]
[1644543718144,54.06642154,105.24,105.12,0.024]
[1644543718341,65.19642154,105.24,105.12,0.024]
[1644543719442,14.2735,105.21,105.12,0.024]
[1644543719941,19.0265,105.21,105.12,0.024]
[1644543720140,21.25772154,105.21,105.12,0.024]
[1644543721150,19.0265,105.21,105.12,0.024]
[1644543721945,14.2735,105.21,105.12,0.024]
[1644543722646,19.0234,105.23,105.13,46.55484867]
[1644543722847,4.753,105.27,105.14,0.024]
[1644543723047,4.752,105.28,105.14,0.024]
[1644543723249,6.98322154,105.28,105.14,0.024]
[1644543723447,11.58,105.27,105.14,0.024]
[1644543723648,4.752,105.26,105.14,0.024]
[1644543723846,11.13,105.25,105.14,0.024]
[1644543724047,25.3977,105.25,105.14,0.024]
[1644543724248,2.23122154,105.24,105.14,0.024]
[1644543725569,4.753,105.23,105.14,0.024]
[1644543725871,14.2713,105.22,105.13,84.25104867]
[1644543727370,4.753,105.23,105.13,84.25104867]
[1644543727569,154.8131,105.25,105.13,84.25104867]
[1644543727770,6.98422154,105.23,105.14,0.024]
[1644543727973,2.23122154,105.23,105.13,84.25104867]
[1644543728170,4.753,105.24,105.13,84.25104867]
[1644543728372,78.24087513,105.25,105.14,0.024]
[1644543728570,14.2709,105.23,105.15,43.36625267]
[1644543728779,49.0031,105.25,105.15,43.64025267]
[1644543728973,49.0031,105.25,105.15,43.36625267]
[1644543729174,49.0031,105.25,105.15,43.39025267]
[1644543729572,18.11422154,105.27,105.15,43.39025267]
[1644543729774,14.2692,105.25,105.15,57.65885267]
[1644543730375,19.0212,105.25,105.15,57.65885267]
[1644543730881,14.2692,105.25,105.15,57.90885267]
[1644543731074,14.2692,105.25,105.15,57.65885267]
[1644543732473,16.50042154,105.25,105.15,43.39025267]
[1644543732875,28.9809233,105.25,105.15,43.39025267]
[1644543733576,14.2725,105.22,105.15,43.39025267]
[1644543733776,14.2725,105.22,105.15,43.36625267]
[1644543734777,19.022,105.24,105.15,43.36625267]
[1644543734978,14.27,105.24,105.15,43.39025267]
[1644543735180,2.23122154,105.23,105.15,43.39025267]
[1644543735380,2.23122154,105.23,105.15,43.36625267]
[1644543735580,27.5552233,105.25,105.15,43.36625267]
[1644543735784,26.20472154,105.25,105.15,57.66025267]
[1644543735986,27.5552233,105.25,105.15,57.66025267]
[1644543736686,4.752,105.24,105.15,43.39025267]
[1644543736984,19.022,105.24,105.15,43.39025267]
[1644543737182,2.23122154,105.23,105.15,43.39025267]
[1644543737381,4.753,105.22,105.15,43.36625267]
[1644543737581,1.35050176,105.24,105.15,43.36625267]
[1644543737781,1.35050176,105.24,105.15,43.39025267]
[1644543737982,6.10350176,105.26,105.15,44.73052672]
[1644543738183,1.35050176,105.26,105.15,44.98052672]
[1644543739784,15.61770176,105.26,105.15,59.25032672]
[1644543740593,15.11770176,105.26,105.15,59.25032672]
[1644543740795,15.11770176,105.26,105.15,59.00032672]
[1644543740996,16.49842154,105.26,105.15,0.024]
[1644543741205,14.2735,105.22,105.14,0.024]
[1644543741393,4.753,105.21,105.13,23.3386]
[1644543741594,46.9829,105.24,105.14,0.024]
[1644543741795,46.9829,105.24,105.13,23.3146]
[1644543741994,46.9829,105.24,105.14,40.71791288]
[1644543742398,47.5701,105.25,105.15,1.74649123]
[1644543742597,14.2696,105.23,105.16,58.91097534]
[1644543743197,63.4422,105.27,105.16,58.91097534]
[1644543743401,63.4422,105.27,105.17,0.024]
[1644543743824,14.2678,105.25,105.17,0.024]
[1644543743998,14.2678,105.25,105.16,58.93497534]
[1644543744598,14.2678,105.25,105.16,44.66607534]
[1644543744800,14.2705,105.23,105.16,44.66607534]
[1644543744999,63.4472,105.26,105.16,44.66607534]
[1644543745200,58.6952,105.26,105.16,44.64207534]
[1644543745400,58.6952,105.26,105.16,44.66607534]
[1644543746199,14.2666,105.25,105.16,60.93166657]
[1644543746405,4.752,105.3,105.18,43.95553575]
[1644543746606,4.752,105.3,105.17,4.752]
[1644543746804,7.87064774,105.3,105.18,0.024]
[1644543747003,0.45,105.27,105.18,0.024]
[1644543747206,3.11864774,105.25,105.17,4.776]
[1644543747502,3.11864774,105.25,105.18,0.024]
[1644543747503,16.5017173,105.24,105.18,0.024]
[1644543747703,20.78286928,105.24,105.14,0.024]
[1644543747907,20.78286928,105.24,105.13,41.57774887]
[1644543748107,13.79864774,105.24,105.14,0.024]
[1644543748303,25.403,105.24,105.14,14.2954]
[1644543748504,25.403,105.24,105.15,38.05319417]
[1644543748807,14.273,105.24,105.15,38.07719417]
[1644543749007,47.1454,105.25,105.15,38.32719417]
[1644543749204,47.1454,105.25,105.15,38.07719417]
[1644543749604,61.411,105.25,105.15,52.34799417]
[1644543749803,4.752,105.24,105.15,52.34799417]
[1644543750008,47.1454,105.25,105.15,52.34799417]
[1644543750404,4.752,105.24,105.15,52.34799417]
[1644543750607,19.02,105.24,105.15,52.34799417]
[1644543750804,14.268,105.24,105.15,52.34799417]
[1644543753226,61.35444774,105.27,105.15,52.34799417]
[1644543753227,14.2654,105.25,105.15,52.59799417]
[1644543753829,14.2654,105.25,105.15,63.72799417]
[1644543754029,14.2654,105.25,105.17,46.65263606]
[1644543754234,14.2654,105.25,105.19,36.82304153]
[1644543755831,14.2654,105.25,105.19,51.08834153]
[1644543758037,14.2642,105.26,105.19,51.08834153]
[1644543760239,14.2627,105.27,105.19,51.08834153]
[1644543760637,95.7266,105.3,105.19,19.0163]
[1644543760845,4.75,105.29,105.18,0.024]
[1644543761037,105.81,105.28,105.18,0.024]
[1644543761237,4.751,105.27,105.17,0.024]
[1644543761437,11.13,105.26,105.17,0.024]
[1644543761637,4.752,105.25,105.16,39.68249592]
[1644543761837,13.36122154,105.26,105.16,39.68249592]
[1644543762038,11.13,105.26,105.16,39.68249592]
[1644543762439,14.272,105.24,105.16,0.024]
[1644543762638,4.752,105.23,105.16,0.024]
[1644543762838,4.752,105.23,105.14,14.2949]
[1644543763038,11.13,105.24,105.14,14.2949]
[1644543763438,11.13,105.24,105.15,39.41162367]
[1644543763641,11.13,105.24,105.15,53.70632367]
[1644543763642,14.273,105.21,105.15,53.70632367]
[1644543763839,11.13,105.24,105.15,53.68232367]
[1644543764039,11.13,105.24,105.15,53.70632367]
[1644543764742,14.2699,105.22,105.15,53.70632367]
[1644543764942,14.2699,105.22,105.15,53.68232367]
[1644543765140,14.2699,105.22,105.15,39.41162367]
[1644543767042,4.753,105.24,105.15,53.93212367]
[1644543767243,15.883,105.28,105.15,53.95612367]
[1644543767445,15.883,105.28,105.15,77.06862367]
[1644543767844,4.752,105.27,105.15,77.06862367]
[1644543768044,11.13,105.28,105.15,76.81862367]
[1644543768246,14.2652,105.25,105.15,76.81862367]
[1644543769847,16.49642154,105.25,105.15,76.81862367]
[1644543770049,21.24842154,105.25,105.15,76.81862367]
[1644543770248,14.2652,105.25,105.15,76.81862367]
[1644543770650,16.49642154,105.25,105.15,76.81862367]
[1644543770850,27.62642154,105.25,105.15,23.1365]
[1644543771851,27.62642154,105.25,105.16,40.4180233]
[1644543772659,27.62642154,105.25,105.15,37.4067]
[1644543772852,14.2718,105.22,105.15,23.1365]
[1644543773153,14.2718,105.22,105.15,37.383]
[1644543773751,14.2718,105.22,105.16,48.25343301]
[1644543779455,14.2718,105.22,105.16,62.52263301]
[1644543781559,22.6594,105.26,105.16,62.52263301]
[1644543781858,22.6594,105.26,105.16,67.52563301]
[1644543782761,14.2649,105.25,105.16,67.52563301]
[1644543782961,24.6521,105.28,105.16,67.52563301]
[1644543783159,26.64624774,105.3,105.2,14.2606]
[1644543783359,23.9776,105.3,105.21,47.30205931]
[1644543784063,14.2617,105.28,105.21,47.30205931]
[1644543784261,14.2617,105.28,105.19,38.5884]
[1644543784563,4.751,105.27,105.16,96.3586]
[1644543785174,4.751,105.27,105.17,38.10640995]
[1644543785364,54.13472154,105.28,105.17,38.10640995]
[1644543785562,51.9035,105.28,105.17,38.10640995]
[1644543785762,14.2662,105.25,105.19,48.43862739]
[1644543787064,47.5442,105.29,105.19,62.70422739]
[1644543787264,47.5442,105.29,105.19,67.70522739]
[1644543787970,47.5442,105.29,105.19,67.45522739]
[1644543788166,14.2622,105.27,105.19,67.45522739]
[1644543788367,14.2622,105.27,105.19,62.70422739]
[1644543794690,14.2622,105.27,105.16,48.8069]
[1644543794691,2.23122154,105.26,105.16,48.8069]
[1644543794990,14.2695,105.23,105.16,24.0317]
[1644543795198,14.2695,105.23,105.13,0.024]
[1644543795590,14.2695,105.23,105.13,42.71204509]
[1644543795794,25.3995,105.23,105.13,42.71204509]
[1644543796393,4.753,105.22,105.13,14.2977]
[1644543796591,4.753,105.22,105.1,0.024]
[1644543796592,14.2756,105.2,105.1,0.024]
[1644543796802,19.0306,105.2,105.11,0.024]
[1644543797195,30.1606,105.2,105.11,0.024]
[1644543797394,79.35452154,105.2,105.09,41.92714271]
[1644543797594,79.35452154,105.2,105.1,0.024]
[1644543797798,61.2383,105.2,105.1,0.024]
[1644543798802,65.9933,105.2,105.1,14.3013]
[1644543799095,65.9933,105.2,105.11,43.69814818]
[1644543799297,61.2383,105.2,105.11,43.72214818]
[1644543800099,63.46952154,105.2,105.11,43.72214818]
[1644543800299,4.753,105.19,105.11,43.72214818]
[1644543800500,14.2788,105.17,105.11,43.72214818]
[1644543800700,14.2788,105.17,105.09,14.3024]
[1644543800901,16.51002154,105.17,105.08,0.49964405]
[1644543801099,32.39602154,105.17,105.08,0.49964405]
[1644543801399,45.6103,105.16,105.08,0.49964405]
[1644543801604,11.13,105.15,105.08,0.47564405]
[1644543802005,14.2846,105.14,105.08,0.47564405]
[1644543802201,14.2846,105.14,105.08,45.4473063]
[1644543803601,14.2846,105.14,105.08,0.47564405]
[1644543803802,16.51582154,105.14,105.08,0.47564405]
[1644543804009,14.2882,105.12,105.08,0.47564405]
[1644543804207,15.887,105.11,105.03,0.024]
[1644543804411,18.11822154,105.11,105.02,0.024]
[1644543804603,18.11822154,105.11,105.0,0.024]
[1644543804604,18.56822154,105.11,105.0,0.024]
[1644543804806,0.45,105.09,104.97,0.024]
[1644543805005,15.89,105.08,104.97,0.024]
[1644543805210,11.13,105.08,104.97,0.024]
[1644543805404,11.13,105.08,104.98,1.73617302]
[1644543805606,11.13,105.08,104.99,38.12378037]
[1644543805815,11.13,105.08,104.99,42.90778037]
[1644543806012,106.6003,105.1,104.99,44.64395339]
[1644543806206,106.6003,105.1,104.99,40.13395339]
[1644543806418,106.6003,105.1,104.99,54.42335339]
[1644543806608,73.249,105.1,104.99,54.42335339]
[1644543806814,62.119,105.1,104.99,60.42335339]
[1644543807409,4.76,105.12,104.99,71.55335339]
[1644543807608,4.759,105.14,105.0,0.024]
[1644543807811,4.759,105.15,105.04,14.2837]
[1644543808012,15.888,105.17,105.05,47.3197244]
[1644543808210,11.13,105.17,105.06,0.024]
[1644543808513,4.756,105.16,105.06,0.024]